bitfinex/quotes_ETHUSD_20250824
["timestamp","ask_amount","ask_price","bid_price","bid_amount"]
[1756035995795,7.69376297,4745.4,4745.3,0.2983]
[1756035996195,4.16876297,4745.4,4745.3,0.2983]
[1756035996398,7.69376297,4745.4,4745.3,0.2983]
[1756035996603,4.16876297,4745.4,4745.3,0.2983]
[1756035996906,7.69376297,4745.4,4745.3,0.2983]
[1756035998407,7.69376297,4745.4,4745.3,0.5902]
[1756035999515,1.16876297,4745.4,4745.3,0.5902]
[1756035999818,0.190103,4745.4,4745.3,0.5902]
[1756036000404,0.75748237,4745.4,4745.3,0.5902]
[1756036000924,37.49936674,4745.4,4745.3,0.001]
[1756036001086,1.268,4745.2,4745.1,0.04]
[1756036001288,38.86746374,4745.2,4745.1,0.04]
[1756036001504,39.33186374,4745.2,4745.1,0.04]
[1756036001691,41.50457127,4745.2,4745.1,0.04]
[1756036001892,1.928,4744.9,4744.8,0.02]
[1756036002123,39.52746374,4744.9,4744.8,0.02]
[1756036002326,35.98946374,4744.9,4744.8,0.02]
[1756036002481,3.0,4744.8,4744.3,0.001]
[1756036002814,1.5622,4744.4,4744.3,0.001]
[1756036002991,40.37226639,4744.4,4744.3,0.001]
[1756036003333,40.83666639,4744.4,4744.3,0.001]
[1756036003624,40.92119739,4744.4,4744.3,0.001]
[1756036004340,42.05516167,4744.4,4744.3,0.001]
[1756036005204,42.05499477,4744.4,4744.3,0.001]
[1756036005689,42.05496706,4744.4,4744.3,0.001]
[1756036006587,41.03908361,4744.4,4744.3,0.001]
[1756036006787,41.19610407,4744.4,4744.3,0.001]
[1756036007221,37.65610407,4744.4,4744.3,0.001]
[1756036007429,41.19548533,4744.4,4744.3,0.001]
[1756036008431,41.19544821,4744.4,4744.3,0.001]
[1756036008634,11.19444821,4744.4,4744.3,0.001]
[1756036009193,42.32751479,4744.4,4744.3,0.001]
[1756036009391,41.4051385,4744.4,4744.3,0.001]
[1756036010319,42.30154176,4744.4,4744.3,0.001]
[1756036011135,42.40714176,4744.4,4744.3,0.001]
[1756036011440,43.53998896,4744.4,4744.3,0.001]
[1756036011806,42.40714176,4744.4,4744.3,0.001]
[1756036012737,12.40714176,4744.4,4744.3,0.001]
[1756036012937,12.73711266,4744.4,4744.3,0.001]
[1756036013292,12.93373537,4744.4,4744.3,0.001]
[1756036013697,42.93373537,4744.4,4744.3,0.001]
[1756036014238,44.06600068,4744.4,4744.3,0.001]
[1756036014931,43.94760355,4744.4,4744.3,0.001]
[1756036015101,44.06553572,4744.4,4744.3,0.001]
[1756036015741,44.06551031,4744.4,4744.3,0.001]
[1756036015897,14.06551031,4744.4,4744.3,0.001]
[1756036017020,44.06551031,4744.4,4744.3,0.001]
[1756036018331,42.93315232,4744.4,4744.3,0.001]
[1756036019253,44.06541763,4744.4,4744.3,0.001]
[1756036019538,39.39615232,4744.4,4744.3,0.001]
[1756036019839,42.93115232,4744.4,4744.3,0.001]
[1756036020639,42.72046203,4744.4,4744.3,0.001]
[1756036021135,38.72098033,4744.4,4744.3,0.001]
[1756036021311,42.01857707,4744.4,4744.3,0.001]
[1756036021503,38.48454087,4744.4,4744.3,0.001]
[1756036021702,36.14445441,4744.4,4744.3,0.3063]
[1756036021922,40.43299019,4744.4,4744.3,0.5982]
[1756036022121,36.89899019,4744.4,4744.3,0.3063]
[1756036022341,40.43399019,4744.4,4744.3,0.3063]
[1756036022912,10.43399019,4744.4,4744.3,0.3063]
[1756036023318,9.67945441,4744.4,4744.3,0.3063]
[1756036023519,39.67945441,4744.4,4744.3,0.3063]
[1756036023715,40.23865933,4744.4,4744.3,0.3063]
[1756036024067,40.43525388,4744.4,4744.3,0.3063]
[1756036024263,36.89925388,4744.4,4744.3,0.3063]
[1756036024561,40.43425175,4744.4,4744.3,0.3063]
[1756036025115,39.67958522,4744.4,4744.3,0.001]
[1756036025320,39.98938522,4744.4,4744.3,0.001]
[1756036025559,39.79748248,4744.4,4744.3,0.001]
[1756036026817,39.79648248,4744.4,4744.3,0.3063]
[1756036027615,39.67858522,4744.4,4744.3,0.3063]
[1756036028337,39.79662792,4744.4,4744.3,0.3063]
[1756036030350,39.79562792,4744.4,4744.3,0.3063]
[1756036031942,36.26262792,4744.4,4744.3,0.3063]
[1756036032342,40.93055287,4744.4,4744.3,0.5982]
[1756036032562,40.60058197,4744.4,4744.3,0.5982]
[1756036032743,40.93050612,4744.4,4744.3,0.5982]
[1756036033629,40.53745827,4744.4,4744.3,0.5982]
[1756036033829,41.12929248,4744.4,4744.3,0.5982]
[1756036034076,41.12929248,4744.4,4744.3,0.3063]
[1756036034770,41.12928594,4744.4,4744.3,0.3063]
[1756036034965,37.59728594,4744.4,4744.3,0.3063]
[1756036035151,41.13128594,4744.4,4744.3,0.3063]
[1756036036274,6.18603015,4744.4,4744.3,0.5982]
[1756036036430,9.71903015,4744.4,4744.3,0.5982]
[1756036037260,1.56503015,4744.4,4744.3,0.3063]
[1756036037467,0.72430017,4744.4,4744.3,0.5982]
[1756036037681,0.63271216,4744.4,4744.3,0.5982]
[1756036039549,0.30278801,4744.4,4744.3,0.5982]
[1756036042837,0.63265149,4744.4,4744.3,0.5982]
[1756036044278,0.63265149,4744.4,4744.3,0.3063]
[1756036044474,0.63265149,4744.4,4744.3,0.5982]
[1756036045660,0.63265149,4744.4,4744.3,0.3063]
[1756036046176,0.63265149,4744.4,4744.3,0.5982]
[1756036049551,0.30278801,4744.4,4744.3,0.5982]
[1756036050386,0.19718801,4744.4,4744.3,1.2582]
[1756036050583,0.19718801,4744.4,4744.3,1.38802]
[1756036052860,0.19718801,4744.4,4744.3,2.14796161]
[1756036056489,0.19718801,4744.4,4744.3,1.85606161]
[1756036056984,0.52703473,4744.4,4744.3,1.85606161]
[1756036063461,0.19718801,4744.4,4744.3,1.85606161]
[1756036065997,0.19718801,4744.4,4744.3,2.14796161]
[1756036066364,0.19718801,4744.4,4744.3,1.85606161]
[1756036066879,0.19718801,4744.4,4744.3,3.87456161]
[1756036067410,0.19718801,4744.4,4744.3,3.11462]
[1756036069206,0.002,4744.8,4744.6,2.882]
[1756036069410,0.002,4744.8,4744.7,0.9555]
[1756036069703,0.002,4744.8,4744.7,1.353]
[1756036070069,0.002,4744.8,4744.7,4.353]
[1756036071406,0.002,4744.8,4744.7,6.575]
[1756036071609,0.002,4744.8,4744.7,7.50180642]
[1756036073409,0.002,4744.8,4744.7,7.58626042]
[1756036074886,0.002,4744.8,4744.7,11.26844799]
[1756036075092,0.002,4744.8,4744.7,11.76844799]
[1756036076217,0.0744,4745.4,4744.7,11.76844799]
[1756036076531,0.0744,4745.4,4745.3,5.9876]
[1756036076726,0.0744,4745.4,4745.3,11.44]
[1756036077025,0.0744,4745.4,4745.3,11.7319]
[1756036077333,0.022,4745.8,4745.4,3.66]
[1756036077531,0.022,4745.8,4745.7,3.114]
[1756036077696,0.022,4745.8,4745.7,10.834003]
[1756036077896,0.022,4745.8,4745.7,11.625903]
[1756036078096,0.022,4745.8,4745.7,11.710326]
[1756036078303,0.022,4745.8,4745.7,11.815926]
[1756036081698,0.022,4745.8,4745.7,17.21636761]
[1756036082001,0.022,4745.8,4745.7,16.05636761]
[1756036082514,0.7413,4745.8,4745.7,15.74996761]
[1756036082908,0.7413,4745.8,4745.7,16.40996761]
[1756036083102,0.7413,4745.8,4745.7,15.74996761]
[1756036083526,0.7413,4745.8,4745.7,12.88496761]
[1756036083941,0.7413,4745.8,4745.7,16.40996761]
[1756036084401,0.7413,4745.8,4745.7,13.40996761]
[1756036084604,0.7413,4745.8,4745.7,16.40996761]
[1756036084942,0.7413,4745.8,4745.7,6.24554461]
[1756036085118,0.7413,4745.8,4745.7,9.24554461]
[1756036086717,0.7413,4745.8,4745.7,8.58554461]
[1756036086919,0.7413,4745.8,4745.7,7.825603]
[1756036087632,0.7413,4745.8,4745.7,8.485603]
[1756036089106,0.022,4745.8,4745.7,8.485603]
[1756036089736,0.7413,4745.8,4745.7,8.485603]
[1756036089910,0.022,4745.8,4745.7,8.485603]
[1756036090244,0.3096,4745.8,4745.7,8.485603]
[1756036090652,0.022,4745.8,4745.7,8.485603]
[1756036091812,0.7413,4745.8,4745.7,8.485603]
[1756036092327,0.7413,4745.8,4745.7,9.24554461]
[1756036093009,0.4537,4745.8,4745.7,9.24554461]
[1756036093216,0.022,4745.8,4745.7,9.55194461]
[1756036093663,0.022,4745.8,4745.7,11.77394461]
[1756036094229,0.022,4745.8,4745.7,11.098441]
[1756036094413,0.022,4745.8,4745.7,10.792041]
[1756036095542,0.4537,4745.8,4745.7,10.792041]
[1756036095740,0.7413,4745.8,4745.7,10.792041]
[1756036096340,0.7413,4745.8,4745.7,8.570041]
[1756036096539,0.7413,4745.8,4745.7,8.485603]
[1756036098027,0.7413,4745.8,4745.7,8.484603]
[1756036100050,0.7413,4745.8,4745.7,6.24454461]
[1756036100216,0.7413,4745.8,4745.7,5.04954161]
[1756036102817,0.4537,4745.8,4745.7,5.04954161]
[1756036103418,0.022,4745.8,4745.7,5.33874161]
[1756036104619,0.022,4745.8,4745.7,7.56074161]
[1756036107353,0.022,4745.8,4745.7,10.85264161]
[1756036107518,0.022,4745.8,4745.7,12.85152577]
[1756036108722,0.002,4746.3,4745.9,2.882]
[1756036108922,0.002,4746.3,4746.2,6.2768]
[1756036109122,0.002,4746.3,4746.2,11.4208]
[1756036109419,0.002,4746.3,4746.2,12.042408]
[1756036109621,0.002,4746.3,4746.2,14.02844296]
[1756036110048,0.002,4746.3,4746.2,13.73654296]
[1756036110253,0.002,4746.3,4746.2,14.47448457]
[1756036111959,0.002,4746.3,4746.2,14.47648457]
[1756036113967,0.314,4746.3,4746.2,7.77928457]
[1756036114145,0.7462,4746.3,4746.2,9.31924961]
[1756036114345,0.7462,4746.3,4746.2,9.97924961]
[1756036116196,0.314,4746.3,4746.2,9.97924961]
[1756036116480,0.002,4746.3,4746.2,19.57044961]
[1756036116833,0.002,4746.3,4746.2,19.86234961]
[1756036117145,0.002,4746.3,4746.2,21.85058457]
[1756036117842,0.002,4746.3,4746.2,21.74498457]
[1756036118029,0.002,4746.3,4746.2,21.85058457]
[1756036122357,0.002,4746.3,4746.2,21.55868457]
[1756036123137,0.4322,4747.0,4746.9,0.71394161]
[1756036123342,0.7442,4747.0,4746.9,14.19994161]
[1756036123568,0.7442,4747.0,4746.9,15.72553577]
[1756036123768,0.7442,4747.0,4746.9,16.35865577]
[1756036125381,0.002,4747.3,4747.2,0.66]
[1756036125584,0.002,4747.3,4747.2,9.02914161]
[1756036125747,0.002,4747.3,4747.2,12.13474161]
[1756036125949,0.002,4747.3,4747.2,13.50061248]
[1756036126164,0.002,4747.3,4747.2,13.29581948]
[1756036127355,0.7462,4747.3,4747.2,13.29581948]
[1756036129185,0.002,4747.3,4747.2,13.29581948]
[1756036131895,0.002,4747.3,4747.2,13.60091948]
[1756036132064,0.002,4747.3,4747.2,13.89281948]
[1756036132465,0.002,4747.3,4747.2,18.95581948]
[1756036134183,0.002,4747.3,4747.2,18.66291948]
[1756036136259,0.002,4747.3,4747.2,18.95481948]
[1756036136865,0.022,4747.8,4747.6,2.882]
[1756036137094,0.022,4747.8,4747.5,3.0]
[1756036137095,0.022,4747.8,4747.7,10.6643]
[1756036137295,0.022,4747.8,4747.7,10.7699]
[1756036137493,0.022,4747.8,4747.7,11.86012561]
[1756036138564,0.04,4748.4,4748.3,2.882]
[1756036138865,0.04,4748.4,4748.3,12.04404161]
[1756036139065,0.04,4748.4,4748.3,13.24844577]
[1756036139300,0.04,4748.4,4748.3,13.69964577]
[1756036139500,0.04,4748.4,4748.3,13.80524577]
[1756036141024,0.04,4748.4,4748.3,14.09714577]
[1756036141168,0.002,4749.1,4748.6,0.66]
[1756036141374,0.002,4749.1,4748.7,11.52262458]
[1756036141676,0.002,4749.1,4748.7,11.62822458]
[1756036141876,0.002,4749.1,4748.7,11.71259258]
[1756036143773,0.002,4749.1,4748.7,12.00449258]
[1756036144175,0.002,4749.1,4748.7,11.71259258]
[1756036144579,0.002,4749.1,4748.7,12.00449258]
[1756036145208,0.002,4749.1,4748.7,11.71259258]
[1756036145577,0.002,4749.1,4748.7,12.42653419]
[1756036146609,0.002,4749.1,4748.7,12.71843419]
[1756036146981,0.002,4749.1,4748.7,12.42653419]
[1756036147908,0.002,4749.1,4749.0,2.882]
[1756036148091,0.002,4749.1,4749.0,11.34555342]
[1756036148492,0.002,4749.1,4749.0,11.79675342]
[1756036149182,0.002,4749.1,4749.0,11.49165342]
[1756036149789,0.002,4749.1,4749.0,11.79675342]
[1756036150413,0.002,4749.1,4749.0,11.49165342]
[1756036150924,0.7427,4749.1,4749.0,11.49165342]
[1756036151528,0.7427,4749.1,4749.0,12.20459503]
[1756036151893,0.7427,4749.1,4749.0,8.02359503]
[1756036152094,0.7427,4749.1,4749.0,6.49274161]
[1756036152301,0.7427,4749.1,4749.0,10.67374161]
[1756036153609,0.2935,4749.1,4749.0,10.67374161]
[1756036154139,0.002,4749.1,4749.0,10.67374161]
[1756036154314,0.002,4749.1,4749.0,17.75374161]
[1756036154515,0.7427,4749.1,4749.0,17.75374161]
[1756036154700,0.7427,4749.1,4749.0,19.52911577]
[1756036155638,0.7427,4749.1,4749.0,16.00811577]
[1756036155814,0.7427,4749.1,4749.0,19.52911577]
[1756036156746,0.2935,4749.1,4749.0,19.52911577]
[1756036156913,0.7427,4749.1,4749.0,19.52911577]
[1756036158647,0.002,4749.1,4749.0,19.52911577]
[1756036159253,0.002,4749.1,4749.0,12.75421577]
[1756036160508,0.002,4749.3,4749.2,2.882]
[1756036160754,0.002,4749.3,4749.2,17.10204161]
[1756036161212,0.002,4749.3,4749.2,17.18639561]
[1756036162512,0.002,4749.3,4749.2,17.47829561]
[1756036162713,0.002,4749.3,4749.2,17.18639561]
[1756036162943,0.002,4749.3,4749.2,19.51257475]
[1756036163355,0.002,4749.6,4749.5,2.882]
[1756036163560,0.002,4749.6,4749.5,10.41744161]
[1756036164053,0.002,4749.6,4749.5,10.60738861]
[1756036164262,0.002,4749.6,4749.5,10.89928861]
[1756036164446,0.002,4749.6,4749.5,12.98818754]
[1756036164643,0.002,4749.6,4749.5,12.69628754]
[1756036167055,0.4669,4750.3,4750.2,5.882]
[1756036167214,0.7525,4750.3,4750.2,11.022]
[1756036167406,0.7525,4750.3,4750.2,20.08633577]
[1756036168443,0.7525,4750.3,4750.2,20.71891477]
[1756036168853,0.7525,4750.3,4750.2,13.63891477]
[1756036170124,0.7525,4750.3,4750.2,10.11791477]
[1756036170323,0.7525,4750.3,4750.2,13.63891477]
[1756036170725,0.002,4750.3,4750.2,13.63891477]
[1756036170955,0.042,4750.4,4750.3,5.882]
[1756036171129,0.042,4750.4,4750.3,8.92972309]
[1756036171656,0.042,4750.4,4750.3,9.01405409]
[1756036171855,0.042,4750.4,4750.3,8.72215409]
[1756036172263,0.042,4750.4,4750.3,9.01405409]
[1756036176384,0.042,4750.4,4750.3,8.72215409]
[1756036177668,0.002,4751.2,4750.8,6.51794161]
[1756036177862,0.002,4751.2,4750.8,10.35429416]
[1756036178266,0.002,4751.2,4750.8,10.43861616]
[1756036179166,0.002,4751.2,4750.8,10.54178458]
[1756036179467,0.002,4751.2,4750.8,7.02178458]
[1756036179674,0.7525,4750.9,4750.8,10.24128458]
[1756036180974,0.7525,4750.9,4750.8,10.34688458]
[1756036181135,0.7525,4750.9,4750.8,10.98282619]
[1756036182246,0.7525,4750.9,4750.8,10.87965777]
[1756036182575,0.7525,4750.9,4750.8,17.95965777]
[1756036182875,0.7525,4750.9,4750.8,4.47765777]
[1756036183185,0.7525,4750.9,4750.8,2.13765777]
[1756036183367,0.7525,4750.9,4750.8,8.65665777]
[1756036184696,0.7525,4750.9,4750.8,8.67665777]
[1756036186666,0.7525,4750.9,4750.8,10.89865777]
[1756036186863,0.7525,4750.9,4750.8,7.37965777]
[1756036187079,0.7525,4750.9,4750.8,10.89865777]
[1756036187484,0.7525,4750.9,4750.8,4.50586361]
[1756036187692,0.7525,4750.9,4750.8,1.50586361]
[1756036187894,0.7525,4750.9,4750.8,5.02486361]
[1756036188995,0.7525,4750.9,4750.8,5.00486361]
[1756036189305,0.002,4750.9,4750.8,17.30686361]
[1756036189604,0.7525,4750.9,4750.8,9.4152]
[1756036189774,0.7525,4750.9,4750.8,7.273322]
[1756036191538,0.7525,4750.9,4750.8,3.084322]
[1756036191677,0.7525,4750.9,4750.8,3.613322]
[1756036192176,0.7525,4750.9,4750.8,4.273322]
[1756036192376,0.7525,4750.9,4750.8,4.189]
[1756036193775,0.7525,4750.9,4750.3,0.001]
[1756036193985,0.4325,4750.8,4750.4,4.161767]
[1756036194216,0.3081,4750.5,4750.4,3.529]
[1756036194412,0.3081,4750.5,4750.4,4.189]
[1756036194618,0.7406,4750.5,4750.4,4.189]
[1756036195001,0.4325,4750.5,4750.4,4.189]
[1756036195204,0.002,4750.9,4750.5,3.66]
[1756036195382,0.002,4750.9,4750.5,0.66]
[1756036195588,0.3081,4750.6,4750.4,0.66]
[1756036195914,0.3081,4750.6,4750.5,4.194]
[1756036196117,0.3081,4750.6,4750.5,4.195]
[1756036196320,0.7406,4750.6,4750.5,4.195]
[1756036196826,0.7406,4750.6,4750.5,7.195]
[1756036198301,0.7406,4750.6,4750.5,7.827713]
[1756036199419,0.7406,4750.6,4750.5,4.292713]
[1756036199618,0.7406,4750.6,4750.5,0.738313]
[1756036199929,0.7406,4750.6,4750.5,0.1056]
[1756036200108,0.7406,4750.6,4750.5,3.6406]
[1756036200310,0.7406,4750.6,4750.5,3.535]
[1756036200530,0.8462,4750.6,4750.5,3.535]
[1756036201101,0.8462,4750.6,4750.5,3.536]
[1756036203043,0.8462,4750.6,4750.5,0.001]
[1756036203226,0.85856194,4750.6,4750.5,3.539]
[1756036203933,0.85856194,4750.6,4750.3,0.001]
[1756036204109,0.4325,4750.5,4750.3,0.001]
[1756036204309,0.3081,4750.4,4750.3,0.001]
[1756036204833,0.7406,4750.4,4750.3,0.001]
[1756036204998,1.07007872,4750.4,4750.3,0.001]
[1756036205199,1.18888279,4750.4,4750.3,0.001]
[1756036205618,1.18888279,4750.4,4750.3,3.543]
[1756036205815,1.18888279,4750.4,4750.3,0.001]
[1756036206037,1.18888279,4750.4,4750.3,3.543]
[1756036206348,1.18888279,4750.4,4750.3,0.001]
[1756036207960,1.18888279,4750.4,4750.3,3.543]
[1756036210862,1.18888279,4750.4,4750.3,3.542]
[1756036211368,1.18888279,4750.4,4750.3,0.001]
[1756036211666,1.18888279,4750.4,4750.3,3.542]
[1756036213033,1.29448279,4750.4,4750.3,3.542]
[1756036213674,0.96500407,4750.4,4750.3,3.542]
[1756036215144,0.96500407,4750.4,4750.3,0.001]
[1756036217544,1.2944728,4750.4,4750.3,0.001]
[1756036219486,0.96500407,4750.4,4750.3,0.001]
[1756036220005,1.29451561,4750.4,4750.3,0.001]
[1756036220374,1.85942733,4750.4,4750.3,0.001]
[1756036221282,1.52991579,4750.4,4750.3,0.001]
[1756036222881,1.8594368,4750.4,4750.3,0.001]
[1756036223184,1.29452508,4750.4,4750.3,0.001]
[1756036224810,1.00029763,4750.4,4750.3,0.001]
[1756036225011,1.00029763,4750.4,4750.3,0.2973]
[1756036225012,0.43512101,4750.4,4750.3,0.2973]
[1756036225593,0.43512101,4750.4,4750.3,0.001]
[1756036227016,0.74982101,4750.4,4750.3,0.001]
[1756036227510,0.43512101,4750.4,4750.3,0.001]
[1756036229334,0.88705039,4750.4,4750.3,0.001]
[1756036229504,0.1056,4750.4,4750.3,0.001]
[1756036229710,1.47460189,4750.4,4750.3,0.001]
[1756036229906,1.02267251,4750.4,4750.3,0.001]
[1756036230106,1.47460189,4750.4,4750.3,0.001]
[1756036232426,2.23189765,4750.4,4750.3,0.001]
[1756036232929,5.56139588,4750.4,4750.3,0.001]
[1756036234238,4.80410012,4750.4,4750.3,0.001]
[1756036240340,5.37132334,4750.4,4750.3,0.001]
[1756036243045,5.04182511,4750.4,4750.3,0.001]
[1756036243547,4.47460189,4750.4,4750.3,0.001]
[1756036246251,4.80410261,4750.4,4750.3,0.001]
[1756036246552,4.06150261,4750.4,4750.3,0.2973]
[1756036246718,3.8870301,4750.4,4750.3,0.2973]
[1756036246918,3.8870301,4750.4,4750.3,0.5902]
[1756036247518,0.8870301,4750.4,4750.3,0.5902]
[1756036247780,0.43510072,4750.4,4750.3,0.5902]
[1756036248258,0.43510072,4750.4,4750.3,1.22614161]
[1756036248465,0.32950072,4750.4,4750.3,1.34875577]
[1756036248820,0.32950072,4750.4,4750.3,5.54475577]
[1756036249653,0.32950072,4750.4,4750.3,5.65035577]
[1756036250346,0.002,4750.5,4750.4,0.66]
[1756036250562,0.002,4750.5,4750.4,1.88514161]
[1756036250750,0.002,4750.5,4750.4,2.67164135]
[1756036251656,0.002,4750.5,4750.4,2.75600735]
[1756036253050,0.002,4750.5,4750.4,5.86160735]
[1756036255740,0.002,4750.5,4750.4,12.94160735]
[1756036256042,0.002,4750.8,4750.6,0.66]
[1756036256244,0.002,4750.8,4750.7,4.24012215]
[1756036256477,0.002,4750.8,4750.7,4.34572215]
[1756036256691,0.002,4750.8,4750.7,4.63862215]
[1756036258783,0.002,4750.8,4750.7,4.72297215]
[1756036261053,0.002,4751.9,4751.6,0.66]
[1756036261254,0.002,4751.9,4751.6,6.69414161]
[1756036263677,0.022,4751.8,4751.6,6.69414161]
[1756036264667,0.022,4751.8,4751.6,6.39294161]
[1756036264868,0.7907,4751.7,4751.6,2.85894161]
[1756036265198,0.7907,4751.7,4751.6,6.39094161]
[1756036265494,0.7907,4751.7,4751.6,5.73094161]
[1756036267288,1.12006303,4751.7,4751.6,5.73094161]
[1756036268877,1.12006303,4751.7,4751.6,6.39094161]
[1756036269489,0.33136303,4751.7,4751.6,6.39094161]
[1756036269690,0.33136303,4751.7,4751.6,7.04069577]
[1756036269969,0.002,4751.7,4751.6,7.34189577]
[1756036270169,0.002,4751.7,4751.6,7.04069577]
[1756036270767,0.002,4751.7,4751.6,7.34189577]
[1756036273208,0.33134713,4751.7,4751.6,7.34189577]
[1756036274471,0.33134713,4751.7,4751.6,7.04069577]
[1756036274988,0.33134713,4751.7,4751.6,7.34189577]
[1756036275584,0.33134713,4751.7,4751.6,7.04069577]
[1756036275977,1.12004713,4751.7,4751.6,7.04069577]
[1756036276395,1.12004713,4751.7,4751.6,6.38694161]
[1756036277575,1.12004713,4751.7,4751.6,5.72594161]
[1756036278281,0.64564713,4751.7,4751.6,5.72594161]
[1756036278998,1.12004713,4751.7,4751.6,5.72594161]
[1756036279509,1.12004713,4751.7,4751.6,5.72694161]
[1756036279910,1.12004713,4751.7,4751.6,5.72594161]
[1756036281380,0.7907,4751.7,4751.6,5.72594161]
[1756036285915,0.002,4751.7,4751.6,7.02190287]
[1756036286214,0.002,4751.7,4751.6,7.31900287]
[1756036286411,0.002,4751.7,4751.6,7.77596487]
[1756036288212,0.002,4751.7,4751.6,7.31900287]
[1756036288526,0.002,4751.7,4751.6,7.02190287]
[1756036290419,0.002,4751.7,4751.6,7.10625287]
[1756036291214,0.7365,4751.7,4751.6,2.85894161]
[1756036291415,0.7365,4751.7,4751.6,5.72294161]
[1756036293085,1.06586644,4751.7,4751.6,5.72294161]
[1756036303139,0.63436644,4751.7,4751.6,5.72294161]
[1756036303307,1.06586644,4751.7,4751.6,2.19894161]
[1756036303512,1.18541308,4751.7,4751.6,5.72294161]
[1756036303707,0.85604664,4751.7,4751.6,5.72294161]
[1756036304344,0.85604664,4751.7,4751.6,5.143]
[1756036305662,0.7365,4751.7,4751.6,5.143]
[1756036307055,1.06589595,4751.7,4751.6,5.143]
[1756036308131,0.63439595,4751.7,4751.6,5.143]
[1756036308429,0.33139595,4751.7,4751.6,5.143]
[1756036308634,0.33139595,4751.7,4751.6,5.4401]
[1756036308958,0.002,4751.7,4751.6,5.143]
[1756036310445,0.7365,4751.7,4751.6,1.619]
[1756036310765,0.7365,4751.7,4751.6,5.143]
[1756036311370,0.7365,4751.7,4751.6,5.72294161]
[1756036312290,1.06588812,4751.7,4751.6,5.72294161]
[1756036313581,0.33138812,4751.7,4751.6,6.67159416]
[1756036313736,0.002,4751.7,4751.6,6.96449416]
[1756036314074,0.002,4751.7,4751.6,7.59711516]
[1756036315965,0.002,4751.7,4751.6,11.17705677]
[1756036319597,0.002,4752.2,4752.1,0.66]
[1756036319895,0.002,4752.2,4752.1,7.4802]
[1756036320288,0.002,4752.2,4752.1,7.564528]
[1756036320600,0.002,4752.2,4752.1,8.11846961]
[1756036322965,0.002,4752.2,4752.1,8.11746961]
[1756036323163,0.002,4752.2,4752.1,9.74899714]
[1756036323602,0.002,4752.2,4752.1,9.85459714]
[1756036324996,0.002,4752.2,4752.1,10.14749714]
[1756036325178,0.002,4752.2,4752.1,9.85459714]
[1756036325981,0.02,4752.8,4752.6,0.66]
[1756036326178,0.02,4752.8,4752.6,6.43013577]
[1756036326795,0.742,4752.7,4752.6,6.86763577]
[1756036329074,0.4395,4752.7,4752.6,6.86763577]
[1756036329598,0.742,4752.7,4752.6,6.86763577]
[1756036331572,0.4395,4752.7,4752.6,6.86763577]
[1756036332275,0.002,4752.7,4752.6,6.86763577]
[1756036333201,0.002,4752.7,4752.6,7.16383577]
[1756036334250,0.002,4752.7,4752.6,6.86763577]
[1756036334511,0.742,4752.7,4752.6,6.86763577]
[1756036335009,0.4395,4752.7,4752.6,6.86763577]
[1756036335511,0.742,4752.7,4752.6,6.86763577]
[1756036339721,0.002,4752.7,4752.6,6.86763577]
[1756036340012,0.742,4752.7,4752.6,6.86763577]
[1756036342320,0.4395,4752.7,4752.6,6.86763577]
[1756036342507,0.002,4752.7,4752.6,7.15503577]
[1756036344298,0.002,4752.7,4752.6,6.86763577]
[1756036345723,0.002,4753.2,4753.0,0.66]
[1756036345913,0.7446,4753.1,4753.0,0.7648]
[1756036346113,0.7446,4753.1,4753.0,4.2868]
[1756036346490,0.7446,4753.1,4753.0,4.919227]
[1756036346690,0.3067,4753.1,4753.0,4.919227]
[1756036346890,0.002,4753.2,4753.0,6.41100489]
[1756036347091,0.002,4753.2,4753.1,0.9529]
[1756036347439,0.002,4753.2,4753.1,1.2403]
[1756036347608,0.002,4753.2,4753.1,1.569559]
[1756036349838,0.002,4753.2,4753.1,1.276659]
[1756036350035,0.002,4753.2,4753.1,5.16063853]
[1756036351426,0.002,4753.2,4753.1,4.97253853]
[1756036351623,0.002,4753.2,4753.1,5.26543853]
[1756036352122,0.002,4753.2,4753.1,4.97253853]
[1756036353027,0.002,4753.2,4753.1,5.26543853]
[1756036354316,0.002,4753.2,4753.1,4.97253853]
[1756036354517,0.002,4753.2,4753.1,5.26543853]
[1756036357131,0.002,4753.2,4753.1,7.48743853]
[1756036358900,0.002,4753.2,4753.1,11.16341798]
[1756036359604,0.04,4753.4,4753.1,11.16341798]
[1756036359811,0.04,4753.4,4753.3,5.882]
[1756036359999,0.04,4753.4,4753.3,9.6904]
[1756036360207,0.00995015,4753.4,4753.3,10.21993251]
[1756036360624,0.00995015,4753.4,4753.3,10.32473251]
[1756036361908,0.04,4755.4,4755.3,1.03599146]
[1756036362109,0.04,4755.4,4755.3,8.799]
[1756036362408,0.04,4755.4,4755.3,16.35979146]
[1756036362409,0.3467,4755.4,4755.3,16.35979146]
[1756036362739,0.7846,4755.4,4755.3,16.79769146]
[1756036365106,0.4779,4755.4,4755.3,16.79769146]
[1756036365336,0.4779,4755.4,4755.3,18.47746061]
[1756036366120,0.7846,4755.4,4755.3,18.47746061]
[1756036366712,0.7866,4755.4,4755.3,18.47746061]
[1756036366912,0.042,4755.4,4755.3,18.76486061]
[1756036367125,0.002,4755.9,4755.7,0.66]
[1756036367342,0.002,4755.9,4755.7,6.35849606]
[1756036367537,0.002,4755.9,4755.7,2.83849606]
[1756036367719,0.002,4755.9,4755.7,6.79639606]
[1756036368115,0.002,4755.9,4755.7,12.01839606]
[1756036368316,0.002,4755.9,4755.7,12.31129606]
[1756036369254,0.002,4755.9,4755.7,12.47304342]